bitfinex/quotes_ETHUSD_20251224
["timestamp","ask_amount","ask_price","bid_price","bid_amount"]
[1766603786884,0.002,2941.4,2941.3,0.93919857]
[1766603791894,0.9565,2941.4,2941.1,0.001]
[1766603792278,1.09657779,2941.4,2941.1,0.001]
[1766603792484,0.9545,2941.2,2940.6,0.14007779]
[1766603792691,0.9545,2941.0,2940.5,0.001]
[1766603793065,0.9545,2941.0,2940.5,3.43576741]
[1766603795785,0.9545,2941.0,2940.5,0.03500782]
[1766603796494,0.9545,2941.0,2940.5,0.001]
[1766603796803,1.48964987,2941.0,2940.5,0.001]
[1766603796967,0.99700399,2940.9,2940.5,0.001]
[1766603797303,0.9093,2940.7,2940.1,0.001]
[1766603797503,0.95180833,2940.6,2940.1,0.001]
[1766603797700,0.9093,2940.5,2940.1,0.001]
[1766603797907,0.9093,2940.5,2940.1,0.03501244]
[1766603798270,1.53664773,2940.6,2940.1,0.03501244]
[1766603798475,0.95900833,2940.6,2940.1,0.95051244]
[1766603798769,0.9093,2940.8,2940.1,0.03501244]
[1766603798971,0.892,2940.9,2940.2,0.2873]
[1766603799174,0.892,2940.9,2940.3,0.03401013]
[1766603799175,1.02096552,2940.7,2940.3,0.03401013]
[1766603799391,0.95180544,2940.8,2940.3,0.03401013]
[1766603799604,1.23910544,2940.8,2940.3,0.03401013]
[1766603800306,1.23910544,2940.8,2940.3,0.32111013]
[1766603800519,1.1966,2940.8,2940.3,3.72211679]
[1766603800798,0.9093,2940.8,2940.3,0.32111013]
[1766603801204,0.95180544,2940.8,2940.3,0.32111013]
[1766603801782,0.002,2940.5,2940.3,0.32111013]
[1766603807090,0.002,2940.5,2940.3,0.03401013]
[1766603807413,0.002,2940.5,2940.2,0.03401129]
[1766603811216,0.002,2940.5,2940.2,3.4351389]
[1766603811414,0.002,2940.5,2940.2,4.14766475]
[1766603811796,0.002,2940.5,2940.2,4.43426475]
[1766603812714,0.002,2940.5,2940.2,1.03313714]
[1766603814121,0.002,2940.5,2940.2,4.43426031]
[1766603815000,0.002,2940.5,2940.2,1.03313714]
[1766603815205,0.002,2940.5,2940.2,0.32061129]
[1766603816731,0.002,2940.5,2940.2,0.03401129]
[1766603820194,0.002,2940.5,2940.2,3.72122182]
[1766603821507,0.04250544,2940.8,2940.2,3.43512182]
[1766603821708,4.3093078,2941.2,2940.2,3.43512182]
[1766603821709,0.9501,2941.0,2940.3,0.2821]
[1766603821914,0.0425011,2941.1,2940.5,0.2821]
[1766603822225,4.39264458,2941.2,2940.6,0.03400666]
[1766603822803,4.39264458,2941.2,2940.6,0.282]
[1766603823221,5.26775498,2941.2,2940.6,0.282]
[1766603825032,0.9501,2941.1,2940.6,0.282]
[1766603825241,0.04250255,2941.0,2940.6,0.282]
[1766603827338,0.99260255,2941.0,2940.4,0.2818]
[1766603827537,0.99260255,2941.0,2940.5,0.03400782]
[1766603830235,0.99260255,2941.0,2940.4,0.2818]
[1766603831747,0.99260255,2941.0,2940.5,0.001]
[1766603831950,0.99460255,2941.0,2940.5,0.001]
[1766603833645,4.39481348,2941.0,2940.5,0.001]
[1766603834150,0.99460255,2941.0,2940.5,0.001]
[1766603837540,0.9521,2941.0,2940.5,0.03500782]
[1766603837846,0.9521,2941.0,2940.5,0.31640782]
[1766603838546,4.35230834,2941.0,2940.5,0.31640782]
[1766603838850,0.99260399,2940.9,2940.5,0.001]
[1766603841547,4.39294323,2940.9,2940.5,0.001]
[1766603842120,0.99260399,2940.9,2940.5,0.001]
[1766603847235,0.9501,2940.9,2940.5,0.001]
[1766603848164,4.39295181,2940.9,2940.5,0.001]
[1766603848460,5.17245973,2940.9,2940.5,0.001]
[1766603848761,1.77211191,2940.9,2940.5,0.001]
[1766603850768,0.82201191,2940.9,2940.5,0.001]
[1766603851066,0.9501,2940.8,2940.5,0.001]
[1766603853060,0.002,2941.0,2940.5,0.2819]
[1766603853230,0.04450255,2941.0,2940.6,0.31490666]
[1766603854267,0.04450255,2941.0,2940.6,0.03400666]
[1766603854494,0.04450255,2941.0,2940.1,0.893]
[1766603854495,0.35502535,2940.3,2939.3,0.001]
[1766603854785,0.04251411,2940.2,2939.3,0.9645]
[1766603854931,0.35502535,2940.3,2939.5,1.17358904]
[1766603855133,4.37739056,2940.6,2939.6,0.03401823]
[1766603855334,0.9767,2940.6,2939.7,0.20996073]
[1766603855543,1.02106977,2940.5,2939.8,4.86152562]
[1766603855766,3.40006986,2941.2,2940.6,1.91306977]
[1766603855767,4.37675651,2941.2,2940.6,1.91306977]
[1766603855964,4.37675651,2941.2,2939.7,0.20996073]
[1766603855965,0.77766416,2941.1,2940.7,0.0340055]
[1766603856137,0.9767,2941.2,2940.4,0.03400897]
[1766603856334,0.03643915,2941.1,2940.4,0.03400897]
[1766603856835,1.01313915,2941.1,2940.4,0.03400897]
[1766603857035,1.01313915,2941.1,2940.1,3.43525729]
[1766603857238,1.38811378,2941.0,2940.2,0.892]
[1766603857437,0.03643915,2940.9,2940.5,0.001]
[1766603858684,0.9468,2940.8,2940.5,0.001]
[1766603859016,0.9468,2940.8,2939.9,3.40147089]
[1766603859017,6.8008705,2940.8,2939.0,1e-08]
[1766603859143,6.8008705,2940.8,2938.3,3.40323577]
[1766603859144,0.9468,2939.4,2938.3,3.40323577]
[1766603859347,0.9468,2939.2,2938.3,3.40332845]
[1766603859675,0.9468,2939.2,2938.4,0.03403212]
[1766603859857,0.9468,2939.0,2938.1,0.892]
[1766603860173,0.9468,2939.0,2938.2,0.42956686]
[1766603860963,0.9468,2938.8,2938.1,0.892]
[1766603861141,4.34959128,2938.8,2938.1,0.001]
[1766603861349,0.98323915,2938.7,2938.1,0.001]
[1766603862142,0.91137967,2938.7,2938.1,0.001]
[1766603862964,0.03643915,2938.7,2938.1,0.34487226]
[1766603863160,0.9468,2939.0,2938.2,0.03403444]
[1766603863474,4.34933451,2939.0,2938.2,0.03403444]
[1766603863866,0.9468,2938.9,2938.2,0.01426468]
[1766603864067,0.9468,2938.9,2935.9,3.47069115]
[1766603864068,0.9468,2938.7,2935.9,3.47069115]
[1766603864266,0.9468,2938.5,2937.0,0.892]
[1766603864469,0.7751869,2938.8,2937.0,0.892]
[1766603864470,0.9468,2938.3,2937.1,3.40464075]
[1766603864646,0.9468,2938.1,2936.7,0.891]
[1766603864848,0.9468,2937.9,2937.1,3.40471894]
[1766603865096,0.7751869,2938.8,2937.3,3.40448711]
[1766603865097,0.9468,2938.7,2937.3,3.40448711]
[1766603865283,3.49e-05,2938.0,2937.4,0.03404371]
[1766603865588,0.9468,2938.3,2937.4,0.03404371]
[1766603865787,0.03407359,2938.2,2937.4,0.03404371]
[1766603866099,0.03407359,2938.2,2937.5,1.57630179]
[1766603866378,0.98087359,2938.2,2937.5,1.57630179]
[1766603867265,0.98087359,2938.2,2937.6,0.03404139]
[1766603867583,0.98087359,2938.2,2937.6,3.43817298]
[1766603868249,0.98087359,2938.2,2937.5,0.892]
[1766603869252,0.98087359,2938.2,2937.6,3.40410023]
[1766603869446,0.98087359,2938.2,2937.7,0.03404023]
[1766603873386,0.98087359,2938.2,2937.7,3.43805638]
[1766603873572,6.52049626,2939.6,2937.7,3.43805638]
[1766603873573,0.9468,2938.4,2937.7,7.27519398]
[1766603873779,0.9468,2938.4,2937.7,7.24115375]
[1766603873970,0.9468,2938.4,2937.8,0.03403907]
[1766603874169,0.9468,2938.4,2937.9,0.892]
[1766603874374,0.9468,2938.4,2938.0,0.03403675]
[1766603875387,0.9468,2938.4,2937.9,0.892]
[1766603875588,0.9468,2938.4,2937.9,4.29570977]
[1766603875790,0.9468,2938.4,2938.0,0.03403675]
[1766603877867,0.9468,2938.4,2938.0,3.43769176]
[1766603878193,0.9468,2938.4,2938.0,0.03403675]
[1766603879299,0.9468,2938.4,2938.0,3.43768744]
[1766603879790,0.9468,2938.4,2938.0,3.43968744]
[1766603880517,0.03407359,2938.7,2938.0,3.43971272]
[1766603880671,0.9468,2938.8,2938.0,6.84338869]
[1766603880990,3.40221324,2939.3,2938.0,6.84338869]
[1766603880991,0.9468,2939.1,2938.0,10.21302791]
[1766603881170,0.03407359,2939.0,2938.0,10.21302791]
[1766603881375,0.03407359,2939.4,2938.0,10.21302791]
[1766603881577,3.46515736,2940.8,2938.1,1.45087748]
[1766603881578,0.9585,2939.3,2938.1,1.45087748]
[1766603881775,0.9585,2939.3,2938.2,0.03403444]
[1766603881994,0.9585,2939.3,2938.4,6.80642526]
[1766603882170,0.9585,2939.3,2938.5,0.03403096]
[1766603885895,0.9585,2939.3,2938.6,6.80596202]
[1766603886081,0.9585,2939.3,2938.7,1.61002795]
[1766603887083,0.9595,2939.3,2938.7,1.61002795]
[1766603887396,0.001,2939.3,2938.7,1.61002795]
[1766603887597,0.9585,2940.4,2938.7,1.61002795]
[1766603887815,0.9585,2940.1,2938.8,1.1818971]
[1766603887998,0.9585,2939.9,2938.9,0.92602633]
[1766603888191,10.20338751,2940.2,2938.9,0.92602633]
[1766603888192,0.9585,2939.7,2938.9,0.92602633]
[1766603888505,0.9585,2939.5,2938.9,0.92602633]
[1766603889512,0.9585,2940.0,2938.9,0.92602633]
[1766603889726,0.99257359,2939.9,2939.0,0.7731485]
[1766603890014,0.9585,2939.8,2939.1,0.03402402]
[1766603891925,0.9585,2939.7,2939.0,0.7731485]
[1766603892727,0.77948319,2940.0,2939.1,3.43642397]
[1766603893016,0.99257359,2940.1,2939.1,3.43642397]
[1766603893218,0.9585,2940.0,2939.1,3.43642397]
[1766603893517,0.9585,2940.0,2939.1,0.03402402]
[1766603893725,0.9585,2939.9,2939.1,3.43641631]
[1766603895218,0.001,2939.8,2939.1,3.43641631]
[1766603895418,0.001,2939.8,2939.1,4.28683239]
[1766603896416,0.001,2939.8,2939.1,0.8844401]
[1766603896618,0.001,2939.8,2939.1,0.03402402]
[1766603896785,0.001,2939.8,2939.1,3.43641228]
[1766603897835,0.001,2939.8,2938.9,0.892]
[1766603897991,0.001,2939.8,2939.0,3.40246569]
[1766603900203,0.001,2939.8,2938.9,4.29461998]
[1766603900406,0.001,2939.8,2938.3,1.08586584]
[1766603900407,0.9595,2939.8,2939.0,0.429462]
[1766603900605,0.9595,2939.8,2939.0,0.892]
[1766603900606,0.9585,2939.6,2939.0,0.892]
[1766603900915,0.9585,2939.4,2939.0,0.892]
[1766603902808,0.9585,2939.3,2939.0,0.892]
[1766603904464,0.03407359,2939.4,2939.0,0.892]
[1766603904755,0.9585,2939.6,2939.1,0.03402402]
[1766603904943,0.9585,2939.5,2939.1,0.03402402]
[1766603910467,0.9585,2939.5,2939.0,0.892]
[1766603910468,0.9585,2939.4,2939.0,0.892]
[1766603910673,1.00102568,2939.4,2939.0,0.892]
[1766603911341,1.00102568,2939.4,2939.1,0.01696011]
[1766603911656,1.064,2939.3,2939.1,0.01696011]
[1766603912063,0.78049089,2939.4,2939.1,0.01696011]
[1766603912372,0.04252423,2939.5,2939.1,0.01696011]
[1766603913964,4.50847144,2939.5,2939.1,0.01696011]
[1766603915179,1.064,2939.4,2939.1,0.01696011]
[1766603916089,1.064,2939.7,2939.1,0.01696011]
[1766603916248,0.001,2939.8,2939.1,0.01695547]
[1766603916447,0.04351989,2939.8,2939.1,7.25289774]
[1766603916658,1.064,2940.3,2939.1,7.23594227]
[1766603916867,3.40119235,2940.2,2939.1,7.23594227]
[1766603917863,3.40119235,2940.2,2939.2,3.43622335]
[1766603918184,3.42678996,2940.2,2939.2,3.43622335]
[1766603918588,0.001,2939.5,2939.2,3.43622335]
[1766603919572,0.001,2939.5,2939.2,3.43627425]
[1766603919783,0.001,2939.5,2939.3,0.72698121]
[1766603919989,0.001,2939.5,2939.4,0.92502054]
[1766603925402,0.001,2939.5,2939.4,4.32707538]
[1766603926894,0.001,2939.5,2939.4,0.92502054]
[1766603928796,0.001,2939.5,2939.4,0.891]
[1766603929091,0.001,2939.5,2939.4,0.92502054]
[1766603930098,0.001,2939.5,2939.4,0.891]
[1766603931591,0.001,2939.5,2939.4,0.92502054]
[1766603931990,0.001,2939.5,2939.4,0.891]
[1766603933378,0.001,2939.5,2939.4,0.92502054]
[1766603933820,0.001,2939.5,2939.0,0.002]
[1766603934024,0.001,2939.5,2939.1,0.891]
[1766603935177,0.001,2939.5,2939.1,4.2934014]
[1766603935382,0.001,2939.5,2939.2,0.03402286]
[1766603935782,0.001,2939.5,2939.4,0.001]
[1766603939025,0.002,2939.8,2939.4,0.001]
[1766603939237,0.4394375,2939.8,2939.4,0.001]
[1766603939392,0.002,2939.8,2939.4,0.001]
[1766603940035,1.0486,2939.8,2939.4,0.001]
[1766603942225,0.002,2939.8,2939.4,0.001]
[1766603942427,4.83141001,2940.1,2939.5,0.891]
[1766603942599,0.02559761,2940.0,2939.6,0.03401823]
[1766603943122,0.02559761,2940.0,2938.4,0.891]
[1766603943123,1.0004,2939.6,2938.4,0.891]
[1766603943295,1.0004,2939.1,2938.5,0.0254494]
[1766603943497,0.04253147,2939.0,2938.5,0.0254494]
[1766603943723,1.0004,2939.1,2938.5,0.0254494]
[1766603944431,1.0004,2939.1,2938.5,3.42852168]
[1766603944819,1.0004,2939.1,2938.5,0.0254494]
[1766603945923,1.0004,2939.1,2938.5,3.42847127]
[1766603947334,1.0004,2939.1,2938.5,0.0254494]
[1766603947633,0.04252568,2939.4,2938.6,0.43416003]
[1766603949336,0.04252568,2939.4,2938.6,3.83710699]
[1766603949939,0.04252568,2939.4,2938.7,0.02544969]
[1766603950139,0.04252568,2939.4,2938.8,0.891]
[1766603950432,0.04252568,2939.4,2938.9,0.02544593]
[1766603950635,0.97005629,2939.4,2938.9,0.02544593]
[1766603951517,0.97105629,2939.4,2938.9,0.02544593]
[1766603956244,0.97105629,2939.4,2938.8,0.891]
[1766603956813,0.97105629,2939.4,2938.9,0.02544593]
[1766603957013,4.37313905,2939.4,2938.9,0.02544593]
[1766603957237,0.92280274,2939.3,2938.8,0.891]
[1766603957546,1.97145629,2939.4,2938.8,0.891]
[1766603958521,5.37353766,2939.4,2938.8,0.891]
[1766603958754,1.0004,2939.3,2938.8,0.891]
[1766603961154,1.0004,2939.1,2938.8,0.891]
[1766603963252,0.001,2939.4,2938.9,0.02544898]
[1766603963428,0.04352568,2939.4,2938.9,0.02544898]
[1766603963622,0.48810058,2939.4,2938.9,0.02544898]
[1766603963838,1.0004,2939.3,2938.9,0.02544898]
[1766603966031,0.002,2939.8,2939.2,4.83041001]
[1766603966235,0.001,2940.1,2939.3,5.72241001]
[1766603966460,0.001,2940.1,2939.4,0.92602054]
[1766603966663,1.0014,2940.5,2939.4,0.92602054]
[1766603967039,0.001,2940.6,2939.6,4.83041001]
[1766603967244,1.0004,2940.8,2939.8,6.80318388]
[1766603967448,1.0004,2940.8,2939.9,1.94990105]
[1766603968673,0.001,2940.5,2939.9,1.94990105]
[1766603969972,0.001,2940.5,2940.0,3.40136054]
[1766603970144,0.001,2940.5,2940.1,0.03401244]
[1766603973579,0.001,2940.5,2940.1,3.43525688]
[1766603973801,0.001,2940.5,2940.2,0.34352569]
[1766603973967,0.001,2940.5,2940.3,0.92501013]
[1766603974652,1.0762,2940.5,2940.3,0.891]
[1766603974874,0.01709016,2940.8,2940.3,0.891]
[1766603975185,0.002,2940.9,2940.4,0.03400897]
[1766603975382,0.002,2941.0,2940.4,0.03400897]
[1766603975580,1.0752,2941.2,2940.4,0.03400897]
[1766603975799,1.0752,2941.2,2940.5,0.03400782]
[1766603976090,1.0752,2941.2,2940.5,0.8156252]
[1766603976256,1.0752,2941.2,2940.6,0.03400666]
[1766603976458,1.0752,2941.2,2940.7,0.891]
[1766603976764,1.0752,2941.2,2940.8,0.03400435]
[1766603977353,1.01349016,2941.1,2940.7,0.891]
[1766603980196,3.40087991,2941.3,2940.8,0.03400435]
[1766603980197,0.001,2941.3,2940.8,0.03400435]
[1766603980492,0.001,2941.3,2940.9,3.8328025]
[1766603980690,0.002,2941.4,2941.0,0.03400204]
[1766603980869,0.002,2941.4,2941.1,0.891]
[1766603981071,0.002,2941.4,2941.2,0.03399972]
[1766603982471,0.002,2941.4,2941.1,0.891]
[1766603985400,0.002,2941.4,2941.2,0.03399972]
[1766603985580,0.002,2941.4,2941.1,0.891]
[1766603986406,0.9984,2941.4,2941.1,0.891]
[1766603993847,0.9964,2941.3,2940.6,0.001]
[1766603996520,0.9964,2941.1,2940.6,0.001]
[1766603999324,0.9964,2941.0,2940.6,0.001]
[1766604001194,3.40022051,2941.0,2940.6,0.001]
[1766604001393,0.9964,2940.9,2940.6,0.001]
[1766604002528,1.0713,2941.2,2940.6,0.001]
[1766604002727,1.94750699,2941.1,2940.6,0.001]
[1766604003131,1.0713,2941.0,2940.6,0.001]
[1766604004129,0.891,2941.3,2940.6,0.001]
[1766604004130,1.0713,2941.3,2940.6,0.001]
[1766604006104,1.0713,2941.2,2940.6,0.001]
[1766604011242,1.0713,2941.1,2940.6,0.001]
[1766604011405,1.0713,2941.0,2940.6,0.001]
[1766604043393,0.002,2941.1,2940.6,0.001]
[1766604043692,0.002,2941.1,2940.6,0.03500666]
[1766604044072,0.002,2941.1,2940.6,0.001]
[1766604051108,1.0994,2941.1,2940.6,0.001]
[1766604051410,1.0974,2940.9,2940.6,0.001]
[1766604054010,1.0974,2940.8,2939.5,0.001]
[1766604054182,1.0974,2940.8,2939.8,3.40153853]
[1766604054826,1.0974,2940.8,2939.9,3.40146209]
[1766604055024,1.0974,2940.8,2940.5,0.001]
[1766604055236,1.0974,2940.6,2940.5,0.001]
[1766604056207,1.0974,2940.6,2939.7,3.40168754]
[1766604057356,1.0974,2940.6,2939.7,6.80339519]
[1766604060937,1.0974,2940.6,2939.8,0.03401591]
[1766604061251,1.0974,2940.6,2939.7,6.80339519]
[1766604061408,1.0974,2940.6,2939.8,0.80345543]
[1766604061606,1.0361,2940.5,2939.6,0.892]
[1766604061803,6.80138314,2940.6,2939.6,0.892]
[1766604061804,1.0361,2940.3,2939.6,0.892]
[1766604062741,1.0361,2940.3,2939.7,0.03401707]
[1766604064238,1.0361,2940.6,2939.7,0.03401707]
[1766604064441,0.57784673,2940.5,2939.7,0.03401707]
[1766604064847,1.61394673,2940.5,2939.7,3.43571267]
[1766604065741,1.34177986,2940.7,2939.9,4.82695961]
[1766604065742,0.44977986,2940.7,2939.9,4.82695961]
[1766604065921,3.4002594,2941.0,2940.0,0.0340136]
[1766604066118,4.4363594,2941.0,2940.0,0.0340136]
[1766604066520,3.4002594,2941.0,2940.0,0.0340136]
[1766604066741,1.0361,2940.9,2940.0,0.0340136]
[1766604067055,0.894,2941.1,2940.2,4.82695961]
[1766604067056,0.002,2941.1,2940.2,4.82695961]
[1766604067223,0.002,2941.1,2940.3,0.03401013]
[1766604068845,0.002,2941.1,2940.4,3.40089783]
[1766604069047,0.002,2941.1,2940.5,0.03400782]
[1766604069237,0.002,2941.1,2940.5,0.37749839]
[1766604070859,1.0361,2941.0,2940.5,0.37749839]
[1766604071023,1.0361,2941.0,2940.5,0.03400782]
[1766604072727,1.0361,2941.0,2940.5,3.40076543]
[1766604072928,1.0361,2941.0,2940.6,0.03400666]
[1766604074059,0.002,2941.1,2940.6,0.03400666]
[1766604075829,0.002,2941.1,2940.5,3.43577578]
[1766604076157,0.002,2941.1,2940.5,0.03500782]
[1766604077530,1.0381,2941.1,2940.5,0.03500782]
[1766604077729,1.0381,2941.1,2940.6,0.03400666]
[1766604078038,1.0381,2941.1,2940.5,0.001]
[1766604078861,1.0361,2940.9,2940.5,0.001]
[1766604079790,1.0361,2940.9,2939.7,1.0208613]
[1766604079975,1.0361,2940.9,2939.8,4.32658681]
[1766604081280,1.0361,2940.9,2940.0,3.40130422]
[1766604081458,1.0361,2940.9,2940.1,0.03401244]
[1766604081655,1.0361,2940.7,2940.1,0.03401244]
[1766604084581,1.0361,2940.7,2940.0,0.0340136]
[1766604084769,1.0361,2940.7,2940.0,3.43535867]
[1766604086754,1.0361,2940.7,2939.8,4.29257564]
[1766604086755,4.29257827,2940.7,2939.6,3.40276544]
[1766604087064,1.0361,2940.6,2939.7,3.40168578]
[1766604087387,1.0361,2940.4,2939.6,3.40276281]
[1766604089092,1.0361,2940.2,2939.6,0.001]
[1766604089391,1.0361,2939.9,2939.6,0.001]
[1766604091690,1.0701,2939.8,2939.6,0.001]
[1766604091891,1.0701,2939.8,2939.4,0.001]
[1766604092095,1.0701,2939.6,2939.3,0.001]
[1766604111928,1.0711,2939.6,2939.3,0.001]
[1766604113816,0.001,2939.6,2939.3,0.001]
[1766604114018,1.0087,2940.1,2939.3,0.001]
[1766604114341,1.18631712,2940.1,2939.3,0.0350217]
[1766604114514,1.0087,2940.1,2939.3,0.0350217]
[1766604118234,1.0087,2940.1,2939.4,3.40205484]
[1766604118536,1.0087,2940.0,2939.5,0.03401939]
[1766604118734,1.0087,2940.0,2939.3,0.0350217]
[1766604119740,1.0087,2940.0,2939.3,3.43714971]
[1766604120107,1.0087,2940.0,2939.3,4.21020323]
[1766604120310,1.0087,2940.0,2939.3,7.61237381]
[1766604120510,1.0087,2940.0,2939.3,7.57835211]
[1766604120779,1.0087,2940.0,2939.3,4.17618153]
[1766604121048,1.0087,2940.0,2939.3,4.21020323]
[1766604121246,1.0087,2940.0,2939.4,0.85034488]
[1766604121454,1.0087,2940.0,2939.5,0.03401939]
[1766604122235,1.0087,2940.0,2939.4,0.03402054]
[1766604122847,1.0087,2940.0,2939.3,0.0350217]
[1766604123154,1.0087,2940.0,2939.3,3.43716974]
[1766604123554,1.0087,2940.0,2939.3,0.80807666]
[1766604123746,1.0087,2940.0,2939.3,0.0350217]
[1766604124058,1.0087,2940.0,2939.4,3.40203368]
[1766604124224,1.0087,2940.0,2939.5,0.03401939]
[1766604125668,1.0087,2940.0,2939.4,0.03402054]
[1766604125972,1.0087,2940.0,2939.4,3.43605529]
[1766604127458,1.0097,2940.0,2939.4,3.43605529]
[1766604130473,1.0097,2940.0,2939.4,0.03402054]
[1766604130676,1.0097,2940.0,2939.3,0.0350217]
[1766604130861,1.0097,2940.0,2939.4,3.40204738]
[1766604131167,1.0097,2940.0,2939.5,0.03401939]
[1766604133480,0.001,2940.1,2939.6,0.03401823]
[1766604133645,1.0664,2940.3,2939.6,0.03401823]
[1766604134573,1.0664,2940.3,2939.6,3.43578031]
[1766604134768,1.0664,2940.3,2939.6,4.11956127]
[1766604135561,1.0664,2940.3,2939.6,0.71779919]
[1766604135746,1.0664,2940.3,2939.6,4.11962036]
[1766604135943,1.0664,2940.3,2939.6,0.71779919]
[1766604136148,0.002,2940.0,2939.6,0.71779919]
[1766604139682,0.002,2940.0,2939.6,4.11960469]
[1766604139979,0.002,2940.0,2939.7,0.41196047]
[1766604140146,0.002,2940.0,2939.8,0.03401591]
[1766604141578,0.002,2940.0,2939.7,0.03401707]
[1766604150309,1.0684,2940.0,2939.5,0.001]
[1766604151482,0.9856,2939.9,2939.3,0.001]
[1766604151686,0.894,2940.0,2938.9,4.781]
[1766604151687,0.9856,2939.7,2938.9,4.781]
[1766604151917,0.9856,2939.7,2938.8,0.002]
[1766604152300,0.9856,2939.5,2938.8,0.002]
[1766604156529,0.9856,2939.8,2938.8,0.002]
[1766604156729,0.9856,2939.8,2938.9,0.68417537]
[1766604157023,0.9856,2939.8,2939.0,0.03402517]
[1766604157389,0.9856,2939.7,2939.0,0.03402517]
[1766604159923,0.9866,2939.7,2939.0,0.03402517]
[1766604160227,0.9866,2939.7,2939.0,3.43653593]
[1766604160438,0.9866,2939.7,2939.0,4.18908163]
[1766604161098,0.9856,2939.6,2939.0,0.78657087]
[1766604161420,0.9856,2939.6,2939.0,0.03402517]
[1766604161794,0.9856,2939.6,2939.1,0.03402402]
[1766604162235,0.9856,2939.6,2938.9,0.03402633]
[1766604164236,0.9856,2939.6,2938.9,3.43664342]
[1766604165551,0.9856,2939.6,2938.9,0.03402633]
[1766604167659,0.9866,2939.6,2938.9,3.43663093]
[1766604168456,0.9866,2939.6,2938.9,4.12077673]
[1766604170357,0.9866,2939.6,2938.9,0.6841458]
[1766604170753,0.9866,2939.6,2938.9,4.08675272]
[1766604170940,0.9866,2939.6,2938.9,4.12077905]
[1766604175734,0.9866,2939.6,2938.9,4.12277905]
[1766604177762,0.9866,2939.6,2938.9,0.72017213]
[1766604178069,1.043,2939.5,2938.9,0.002]
[1766604180670,1.043,2939.4,2938.9,0.002]
[1766604185283,0.43993231,2939.6,2938.9,0.03602633]
[1766604185684,0.001,2939.6,2938.9,0.03602633]
[1766604185852,0.001,2939.6,2939.0,0.892]
[1766604186182,0.001,2939.6,2939.1,0.03402402]
[1766604187987,0.001,2939.6,2939.1,3.43635068]
[1766604190885,0.9737,2939.5,2939.1,0.03402402]
[1766604192762,0.001,2939.6,2939.1,0.03402402]
[1766604193559,0.001,2939.6,2939.1,3.43642326]
[1766604193759,0.001,2939.6,2939.1,0.03402402]
[1766604195465,0.9747,2939.6,2939.1,0.03402402]
[1766604198589,0.9737,2939.5,2939.0,0.892]
[1766604203593,0.9737,2939.5,2939.1,0.03402402]
[1766604203985,0.9737,2939.5,2938.9,0.002]
[1766604204186,0.9737,2939.5,2938.9,3.40462536]
[1766604204734,0.9737,2939.5,2939.0,0.03402517]
[1766604206137,0.9737,2939.5,2938.9,3.40462536]
[1766604206834,0.9737,2939.5,2939.0,0.002]
[1766604207036,0.9747,2939.5,2939.0,0.002]
[1766604207537,0.9747,2939.5,2939.0,0.03602517]
[1766604209902,0.9747,2939.5,2939.0,0.002]
[1766604210107,0.9737,2939.4,2939.0,0.002]
[1766604210641,0.9737,2939.4,2938.8,0.002]
[1766604213114,1.0583,2939.2,2938.8,0.002]
[1766604214533,1.0583,2939.2,2938.5,0.002]
[1766604215134,3.40240209,2939.1,2938.5,0.002]
[1766604215454,1.0583,2939.0,2938.5,0.002]
[1766604217837,1.0583,2939.0,2938.5,0.03603096]
[1766604220548,1.0583,2939.0,2938.5,3.43911207]
[1766604221044,1.0583,2939.0,2938.5,0.03603096]
[1766604222047,1.0152,2938.9,2938.5,0.03603096]
[1766604223454,1.0152,2938.9,2938.5,3.43910912]
[1766604226061,1.0162,2939.2,2938.5,3.43910912]
[1766604235374,0.001,2939.2,2938.5,0.03603096]
[1766604235576,1.0152,2939.1,2938.5,0.03603096]
[1766604235770,0.44184398,2939.1,2938.5,0.03603096]
[1766604235980,1.0152,2939.0,2938.5,0.03603096]
[1766604236860,1.0152,2939.0,2938.5,0.002]
[1766604237370,1.0152,2939.0,2938.5,3.43910747]
[1766604237564,0.001,2939.2,2938.5,3.43910747]
[1766604237744,1.20702,2939.2,2938.5,3.43910747]
[1766604241082,1.20702,2939.2,2938.5,6.84220428]
[1766604241250,1.20702,2939.2,2938.5,3.40507651]
[1766604241455,1.20702,2939.2,2938.5,6.84220428]
[1766604241778,1.0162,2939.2,2938.5,6.80817332]
[1766604242079,1.0162,2939.2,2938.6,0.03402981]
[1766604243789,1.0162,2939.2,2938.6,3.43690853]
[1766604246386,1.0162,2939.2,2938.6,0.03402981]
[1766604250013,1.0162,2939.2,2938.6,3.43700701]
[1766604254021,1.0162,2939.2,2938.6,0.03402981]
[1766604254217,1.0162,2939.2,2938.5,0.002]
[1766604254431,1.0183,2939.0,2938.5,0.002]
[1766604256344,0.92603227,2938.9,2938.2,0.001]
[1766604256623,1.0183,2938.8,2938.2,3.40444413]
[1766604256792,1.0183,2938.8,2938.3,0.03403328]
[1766604257403,1.0183,2938.8,2938.3,3.4373136]
[1766604257603,1.0183,2938.8,2938.3,0.03403328]
[1766604257834,1.46378959,2938.8,2938.2,0.03503444]
[1766604258037,1.46378959,2938.8,2938.5,0.002]
[1766604258222,1.0183,2938.8,2938.5,0.002]
[1766604258809,1.15451542,2939.1,2938.5,0.002]
[1766604259014,1.0183,2939.1,2938.5,0.002]
[1766604259925,0.03403227,2939.0,2938.5,0.002]
[1766604260309,0.03403227,2939.0,2938.5,3.40509681]
[1766604260515,1.0183,2939.1,2938.6,0.03402981]
[1766604261615,0.001,2939.2,2938.5,6.80819362]
[1766604261824,0.001,2939.2,2938.6,5.75966947]
[1766604262152,0.001,2939.2,2938.6,0.92602981]
[1766604262446,0.001,2939.2,2938.7,0.77342234]
[1766604262619,0.001,2939.2,2938.8,0.03402749]
[1766604264441,0.001,2939.2,2938.6,4.29491209]
[1766604264442,0.001,2939.2,2938.7,0.03402865]